[Event "Late-Titled-Tuesday-Blitz-July-09-2024"]
[Site "Chess.com"]
[Date "2024.07.09"]
[Round "2"]
[White "Ninocanina"]
[Black "Bkmzzzzz"]
[Result "0-1"]
[WhiteElo "1932"]
[BlackElo "2423"]
[TimeControl "180+1"]
[EndTime "14:18:45 PDT"]
[Termination "Bkmzzzzz won on time"]

1. d4 {[%clk 0:03:00.9]} 1... Nf6 {[%clk 0:02:56.7]} 2. c4 {[%clk 0:02:57]} 2...
e6 {[%clk 0:02:55.9]} 3. Nc3 {[%clk 0:02:55.8]} 3... d5 {[%clk 0:02:54.8]} 4.
cxd5 {[%clk 0:02:55]} 4... exd5 {[%clk 0:02:52.4]} 5. Bg5 {[%clk 0:02:53.3]}
5... c6 {[%clk 0:02:50.8]} 6. e3 {[%clk 0:02:50.5]} 6... Be7 {[%clk 0:02:48.5]}
7. Bd3 {[%clk 0:02:44.8]} 7... h6 {[%clk 0:02:43.1]} 8. Bh4 {[%clk 0:02:38.6]}
8... Bg4 {[%clk 0:02:37.9]} 9. Nge2 {[%clk 0:02:29.6]} 9... O-O {[%clk
0:02:34.1]} 10. O-O {[%clk 0:02:29]} 10... Nbd7 {[%clk 0:02:29.8]} 11. f3 {[%clk
0:02:28.1]} 11... Be6 {[%clk 0:02:22.7]} 12. Kh1 {[%clk 0:02:19]} 12... Qc7
{[%clk 0:02:20.4]} 13. e4 {[%clk 0:02:16.4]} 13... dxe4 {[%clk 0:02:15.8]} 14.
Bg3 {[%clk 0:02:02]} 14... Bd6 {[%clk 0:02:13.6]} 15. Bxd6 {[%clk 0:02:00.7]}
15... Qxd6 {[%clk 0:02:14.5]} 16. Nxe4 {[%clk 0:02:00.1]} 16... Nxe4 {[%clk
0:02:14.3]} 17. fxe4 {[%clk 0:01:54.1]} 17... Bg4 {[%clk 0:02:09.2]} 18. e5
{[%clk 0:01:30.4]} 18... Qe7 {[%clk 0:01:52.1]} 19. Qc2 {[%clk 0:01:22.5]} 19...
Rad8 {[%clk 0:01:45.9]} 20. Ng3 {[%clk 0:01:14.1]} 20... Nb6 {[%clk 0:01:44.6]}
21. Rf4 {[%clk 0:01:10.1]} 21... Be6 {[%clk 0:01:41.5]} 22. Bf5 {[%clk
0:00:47.4]} 22... Nd5 {[%clk 0:01:39.2]} 23. Re4 {[%clk 0:00:39.7]} 23... Bxf5
{[%clk 0:01:26.8]} 24. Nxf5 {[%clk 0:00:38.9]} 24... Qg5 {[%clk 0:01:27.5]} 25.
Rf1 {[%clk 0:00:30.9]} 25... Rd7 {[%clk 0:01:13.1]} 26. Qf2 {[%clk 0:00:29.3]}
26... b6 {[%clk 0:01:02.7]} 27. Nd6 {[%clk 0:00:27.4]} 27... Qg6 {[%clk
0:00:58.2]} 28. Rh4 {[%clk 0:00:20.5]} 28... Qe6 {[%clk 0:00:53.4]} 29. h3
{[%clk 0:00:20.2]} 29... c5 {[%clk 0:00:52.5]} 30. Qg3 {[%clk 0:00:17.2]} 30...
cxd4 {[%clk 0:00:49.7]} 31. Rg4 {[%clk 0:00:17]} 31... g6 {[%clk 0:00:30.7]} 32.
Ne4 {[%clk 0:00:15.7]} 32... Kh7 {[%clk 0:00:26.1]} 33. h4 {[%clk 0:00:14.3]}
33... Re7 {[%clk 0:00:20.3]} 34. Nf6+ {[%clk 0:00:14.3]} 34... Nxf6 {[%clk
0:00:19.6]} 35. exf6 {[%clk 0:00:13.8]} 35... Rd7 {[%clk 0:00:18.4]} 36. h5
{[%clk 0:00:13.8]} 36... g5 {[%clk 0:00:14.6]} 37. Qd3+ {[%clk 0:00:13.9]} 37...
Kh8 {[%clk 0:00:14.4]} 38. Re4 {[%clk 0:00:13.3]} 38... Qd5 {[%clk 0:00:12.7]}
39. Rg4 {[%clk 0:00:12.4]} 39... Qd6 {[%clk 0:00:11.8]} 40. Rf5 {[%clk 0:00:12]}
40... Rg8 {[%clk 0:00:11.5]} 41. b3 {[%clk 0:00:09.1]} 41... Qe6 {[%clk
0:00:11.6]} 42. Rg3 {[%clk 0:00:06.9]} 42... Qe1+ {[%clk 0:00:11.3]} 43. Kh2
{[%clk 0:00:07]} 43... Qe6 {[%clk 0:00:11.5]} 44. Rgf3 {[%clk 0:00:06.8]} 44...
Qd6+ {[%clk 0:00:11.3]} 45. Kg1 {[%clk 0:00:05.7]} 45... Re8 {[%clk 0:00:11.9]}
46. Rf1 {[%clk 0:00:04.3]} 46... Rc7 {[%clk 0:00:11.5]} 47. Qd2 {[%clk
0:00:03.5]} 47... d3 {[%clk 0:00:11.3]} 48. Rxg5 {[%clk 0:00:03.6]} 48... Qd4+
{[%clk 0:00:10.2]} 49. Rf2 {[%clk 0:00:01.4]} 49... hxg5 {[%clk 0:00:10.1]} 50.
Qxg5 {[%clk 0:00:01]} 50... Rc1+ {[%clk 0:00:09.3]} 51. Kh2 {[%clk 0:00:01]}
51... Qe5+ {[%clk 0:00:10]} 0-1

[Event "Late-Titled-Tuesday-Blitz-July-09-2024"]
[Site "Chess.com"]
[Date "2024.07.09"]
[Round "2"]
[White "js20000"]
[Black "Ruprecht_der_Knecht"]
[Result "1/2-1/2"]
[WhiteElo "2782"]
[BlackElo "2527"]
[TimeControl "180+1"]
[EndTime "14:18:50 PDT"]
[Termination "Game drawn by repetition"]

1. d4 {[%clk 0:03:00.9]} 1... Nf6 {[%clk 0:02:53.4]} 2. c4 {[%clk 0:02:59.6]}
2... g6 {[%clk 0:02:53.7]} 3. Nc3 {[%clk 0:02:59.2]} 3... d5 {[%clk 0:02:54.1]}
4. cxd5 {[%clk 0:03:00]} 4... Nxd5 {[%clk 0:02:54]} 5. Na4 {[%clk 0:03:00.8]}
5... Bg7 {[%clk 0:02:52.4]} 6. e4 {[%clk 0:03:01.2]} 6... Nf6 {[%clk 0:02:51.3]}
7. Nc3 {[%clk 0:02:59.4]} 7... O-O {[%clk 0:02:49.6]} 8. Nf3 {[%clk 0:02:57.5]}
8... c5 {[%clk 0:02:49.9]} 9. d5 {[%clk 0:02:56.8]} 9... e6 {[%clk 0:02:48.8]}
10. d6 {[%clk 0:02:57.1]} 10... Nfd7 {[%clk 0:02:42.3]} 11. Bg5 {[%clk
0:02:55.5]} 11... f6 {[%clk 0:02:40.8]} 12. Bf4 {[%clk 0:02:53.6]} 12... Nc6
{[%clk 0:02:39.9]} 13. Bc4 {[%clk 0:02:52.8]} 13... Nb6 {[%clk 0:02:33.9]} 14.
Bb5 {[%clk 0:02:52.8]} 14... Nd4 {[%clk 0:02:28.9]} 15. O-O {[%clk 0:02:17.1]}
15... e5 {[%clk 0:02:25.7]} 16. Be3 {[%clk 0:02:16.8]} 16... Qxd6 {[%clk
0:02:25.4]} 17. b4 {[%clk 0:02:11]} 17... Nxf3+ {[%clk 0:02:20.1]} 18. gxf3
{[%clk 0:02:08.4]} 18... Qxd1 {[%clk 0:02:19.4]} 19. Raxd1 {[%clk 0:02:06.4]}
19... cxb4 {[%clk 0:02:19.3]} 20. Bxb6 {[%clk 0:02:02.6]} 20... axb6 {[%clk
0:02:09.6]} 21. Nd5 {[%clk 0:02:03.2]} 21... Rxa2 {[%clk 0:01:57]} 22. Bc4
{[%clk 0:01:50.1]} 22... Ra5 {[%clk 0:01:32.6]} 23. Nxb6+ {[%clk 0:01:46.8]}
23... Kh8 {[%clk 0:01:32.3]} 24. Kg2 {[%clk 0:01:46.4]} 24... Rc5 {[%clk
0:01:19.7]} 25. Bd5 {[%clk 0:01:34.5]} 25... Bh6 {[%clk 0:01:09.5]} 26. Rb1
{[%clk 0:01:31]} 26... Rb5 {[%clk 0:01:09.8]} 27. Nc4 {[%clk 0:01:28.3]} 27...
b3 {[%clk 0:01:06]} 28. Nd6 {[%clk 0:01:28]} 28... Rb6 {[%clk 0:01:06.1]} 29.
Nxc8 {[%clk 0:01:11.7]} 29... Rxc8 {[%clk 0:01:05.5]} 30. Rxb3 {[%clk
0:01:12.6]} 30... Rxb3 {[%clk 0:01:05.3]} 31. Bxb3 {[%clk 0:01:13.5]} 31... Rc1
{[%clk 0:01:02.9]} 32. Rxc1 {[%clk 0:01:11.9]} 32... Bxc1 {[%clk 0:01:03.8]} 33.
Kf1 {[%clk 0:01:09.9]} 33... Bf4 {[%clk 0:01:02.9]} 34. h3 {[%clk 0:01:09.8]}
34... Kg7 {[%clk 0:01:02.9]} 35. Ke2 {[%clk 0:01:10.3]} 35... Kf8 {[%clk
0:01:02.9]} 36. Kd3 {[%clk 0:01:10.4]} 36... Kg7 {[%clk 0:01:03]} 37. Kc4 {[%clk
0:01:08.8]} 37... Bh2 {[%clk 0:01:01.1]} 38. Kb5 {[%clk 0:01:05.6]} 38... Bg1
{[%clk 0:01:01.4]} 39. Kb6 {[%clk 0:01:06.5]} 39... Bxf2+ {[%clk 0:01:01.9]} 40.
Kxb7 {[%clk 0:01:07.4]} 40... Kh6 {[%clk 0:01:01.8]} 41. Kc6 {[%clk 0:01:07.4]}
41... Kg5 {[%clk 0:01:02.2]} 42. Bg8 {[%clk 0:01:04.9]} 42... h5 {[%clk
0:00:56.5]} 43. Bf7 {[%clk 0:01:04.4]} 43... h4 {[%clk 0:00:54.6]} 44. Kd5
{[%clk 0:01:03.7]} 44... Bd4 {[%clk 0:00:51.7]} 45. Ke6 {[%clk 0:01:01.2]} 45...
f5 {[%clk 0:00:49.5]} 46. Kd5 {[%clk 0:00:57.6]} 46... Ba1 {[%clk 0:00:44.2]}
47. Be8 {[%clk 0:00:56.3]} 47... Kf6 {[%clk 0:00:36.8]} 48. Bd7 {[%clk
0:00:54.9]} 48... Bb2 {[%clk 0:00:36.1]} 49. Be8 {[%clk 0:00:49.6]} 49... Bc1
{[%clk 0:00:36.4]} 50. Bd7 {[%clk 0:00:49.2]} 50... Bd2 {[%clk 0:00:36.9]} 51.
Be8 {[%clk 0:00:49]} 51... Be3 {[%clk 0:00:36.6]} 52. Bd7 {[%clk 0:00:47.5]}
52... Bf4 {[%clk 0:00:36.6]} 53. Be8 {[%clk 0:00:46.9]} 53... Bg3 {[%clk
0:00:37.2]} 54. Bd7 {[%clk 0:00:46.7]} 54... Ke7 {[%clk 0:00:36.7]} 55. Bc8
{[%clk 0:00:43.6]} 55... Kf6 {[%clk 0:00:36.7]} 56. Bd7 {[%clk 0:00:43.3]} 56...
Kg5 {[%clk 0:00:37]} 57. Be8 {[%clk 0:00:42.5]} 57... Kf6 {[%clk 0:00:35.2]} 58.
Kd6 {[%clk 0:00:41.1]} 58... Bf4 {[%clk 0:00:34.9]} 59. Kd7 {[%clk 0:00:39.4]}
59... Be3 {[%clk 0:00:30.1]} 60. Kd6 {[%clk 0:00:37.8]} 60... Ba7 {[%clk
0:00:29.8]} 61. Kd5 {[%clk 0:00:33.9]} 61... Bb8 {[%clk 0:00:29.7]} 62. Ba4
{[%clk 0:00:32.6]} 62... Ba7 {[%clk 0:00:29.7]} 63. Bd7 {[%clk 0:00:31.3]} 63...
Be3 {[%clk 0:00:28.7]} 64. Be8 {[%clk 0:00:30.9]} 64... g5 {[%clk 0:00:28.8]}
65. exf5 {[%clk 0:00:25.9]} 65... Kxf5 {[%clk 0:00:28.7]} 66. Bd7+ {[%clk
0:00:26.3]} 66... Kf4 {[%clk 0:00:28.5]} 67. Bg4 {[%clk 0:00:26.8]} 67... Bd4
{[%clk 0:00:28.3]} 68. Ke6 {[%clk 0:00:26.9]} 68... e4 {[%clk 0:00:22.5]} 69.
fxe4 {[%clk 0:00:27.8]} 69... Kxe4 {[%clk 0:00:23.2]} 70. Kf7 {[%clk 0:00:28.3]}
70... Be3 {[%clk 0:00:24.1]} 71. Kg6 {[%clk 0:00:29.1]} 71... Bf4 {[%clk
0:00:24.9]} 72. Kh5 {[%clk 0:00:30]} 72... Kd4 {[%clk 0:00:25.7]} 73. Kg6 {[%clk
0:00:30.7]} 73... Ke3 {[%clk 0:00:26.6]} 74. Kh5 {[%clk 0:00:31.6]} 74... Kd4
{[%clk 0:00:27.4]} 75. Kg6 {[%clk 0:00:32.5]} 75... Ke3 {[%clk 0:00:28.3]} 76.
Kh5 {[%clk 0:00:33.4]} 76... Kd4 {[%clk 0:00:29.2]} 1/2-1/2

[Event "Late-Titled-Tuesday-Blitz-July-09-2024"]
[Site "Chess.com"]
[Date "2024.07.09"]
[Round "2"]
[White "Hirna2005"]
[Black "cthake"]
[Result "1-0"]
[WhiteElo "2418"]
[BlackElo "1816"]
[TimeControl "180+1"]
[EndTime "14:18:55 PDT"]
[Termination "Hirna2005 won on time"]

1. e4 {[%clk 0:03:00.9]} 1... c5 {[%clk 0:02:59.2]} 2. Nf3 {[%clk 0:03:00.1]}
2... Nc6 {[%clk 0:02:59.2]} 3. c3 {[%clk 0:02:59.7]} 3... g6 {[%clk 0:02:57]} 4.
d4 {[%clk 0:02:59.3]} 4... cxd4 {[%clk 0:02:54.9]} 5. cxd4 {[%clk 0:02:59.2]}
5... Bg7 {[%clk 0:02:55.5]} 6. Be3 {[%clk 0:02:59.3]} 6... d6 {[%clk 0:02:54.5]}
7. Nc3 {[%clk 0:02:59.1]} 7... Bd7 {[%clk 0:02:54.4]} 8. Bc4 {[%clk 0:02:58.1]}
8... Rc8 {[%clk 0:02:40.6]} 9. O-O {[%clk 0:02:50.5]} 9... Na5 {[%clk
0:02:36.3]} 10. Bd3 {[%clk 0:02:41.8]} 10... Nc4 {[%clk 0:02:34.5]} 11. Qe2
{[%clk 0:02:37.8]} 11... Nxe3 {[%clk 0:02:31.4]} 12. fxe3 {[%clk 0:02:38]} 12...
e6 {[%clk 0:02:26.5]} 13. e5 {[%clk 0:02:25.7]} 13... d5 {[%clk 0:02:25.3]} 14.
e4 {[%clk 0:02:22.3]} 14... Bc6 {[%clk 0:02:15.1]} 15. exd5 {[%clk 0:02:19.5]}
15... Bxd5 {[%clk 0:02:13.6]} 16. Nb5 {[%clk 0:02:16.3]} 16... Bf8 {[%clk
0:02:00.5]} 17. Qe3 {[%clk 0:02:03.9]} 17... a6 {[%clk 0:01:57.1]} 18. Nc3
{[%clk 0:02:01.1]} 18... Ne7 {[%clk 0:01:51.3]} 19. Ng5 {[%clk 0:01:57.7]} 19...
Nf5 {[%clk 0:01:48.6]} 20. Bxf5 {[%clk 0:01:52]} 20... gxf5 {[%clk 0:01:45.3]}
21. Nxd5 {[%clk 0:01:42.4]} 21... Qxd5 {[%clk 0:01:44.9]} 22. b3 {[%clk
0:01:37.5]} 22... h6 {[%clk 0:01:36.3]} 23. Nh3 {[%clk 0:01:35.3]} 23... Rg8
{[%clk 0:01:34.6]} 24. Nf4 {[%clk 0:01:34.3]} 24... Qd7 {[%clk 0:01:21.2]} 25.
Nh5 {[%clk 0:01:31.4]} 25... Be7 {[%clk 0:01:09.3]} 26. Rf2 {[%clk 0:01:14.1]}
26... Bg5 {[%clk 0:01:05]} 27. Qd3 {[%clk 0:01:07.4]} 27... Rd8 {[%clk
0:00:54.5]} 28. Rd1 {[%clk 0:01:06.5]} 28... Qc6 {[%clk 0:00:49]} 29. g3 {[%clk
0:00:59.1]} 29... b5 {[%clk 0:00:46.7]} 30. Rg2 {[%clk 0:00:48.4]} 30... Qb6
{[%clk 0:00:35.6]} 31. h4 {[%clk 0:00:46.3]} 31... Be7 {[%clk 0:00:34.4]} 32.
Kh2 {[%clk 0:00:45]} 32... Rg6 {[%clk 0:00:32.2]} 33. Nf4 {[%clk 0:00:42.8]}
33... Rg4 {[%clk 0:00:28.7]} 34. Qf3 {[%clk 0:00:26.1]} 34... Rxd4 {[%clk
0:00:26.3]} 35. Rxd4 {[%clk 0:00:24.3]} 35... Qxd4 {[%clk 0:00:26.6]} 36. Qa8+
{[%clk 0:00:24.2]} 36... Qd8 {[%clk 0:00:26.2]} 37. Qxa6 {[%clk 0:00:20.9]}
37... Qd7 {[%clk 0:00:25.7]} 38. Qa8+ {[%clk 0:00:20.1]} 38... Bd8 {[%clk
0:00:25.9]} 39. Qf3 {[%clk 0:00:18.8]} 39... Qd4 {[%clk 0:00:23.1]} 40. Nd3
{[%clk 0:00:17.3]} 40... Qc3 {[%clk 0:00:19]} 41. Re2 {[%clk 0:00:16.4]} 41...
Bb6 {[%clk 0:00:17.6]} 42. Qa8+ {[%clk 0:00:13.7]} 42... Ke7 {[%clk 0:00:14.5]}
43. Qb7+ {[%clk 0:00:13.4]} 43... Bc7 {[%clk 0:00:14.6]} 44. Qxb5 {[%clk
0:00:12.4]} 44... Qa1 {[%clk 0:00:11.3]} 45. Qc5+ {[%clk 0:00:12.4]} 45... Kd8
{[%clk 0:00:09.5]} 46. Qf8+ {[%clk 0:00:11.9]} 46... Kd7 {[%clk 0:00:07.9]} 47.
Qxf7+ {[%clk 0:00:12.3]} 47... Kd8 {[%clk 0:00:07]} 48. Qf6+ {[%clk 0:00:11.4]}
48... Kc8 {[%clk 0:00:03.9]} 49. Qxe6+ {[%clk 0:00:10.9]} 49... Kb8 {[%clk
0:00:04.6]} 50. Qxf5 {[%clk 0:00:10.1]} 50... Rd4 {[%clk 0:00:04.2]} 51. Nc5
{[%clk 0:00:08.8]} 51... Rd1 {[%clk 0:00:01.4]} 52. Qf8+ {[%clk 0:00:05.7]}
52... Ka7 {[%clk 0:00:01]} 53. Kh3 {[%clk 0:00:03.5]} 53... Rh1+ {[%clk
0:00:01]} 54. Kg4 {[%clk 0:00:03.9]} 1-0

[Event "Late-Titled-Tuesday-Blitz-July-09-2024"]
[Site "Chess.com"]
[Date "2024.07.09"]
[Round "2"]
[White "Sanyura"]
[Black "Chessbard1972"]
[Result "1-0"]
[WhiteElo "2692"]
[BlackElo "2269"]
[TimeControl "180+1"]
[EndTime "14:18:56 PDT"]
[Termination "Sanyura won on time"]

1. e4 {[%clk 0:02:20.2]} 1... c5 {[%clk 0:02:59.4]} 2. Nf3 {[%clk 0:02:20.1]}
2... Nc6 {[%clk 0:02:59.1]} 3. Bb5 {[%clk 0:02:20]} 3... g6 {[%clk 0:02:58.3]}
4. O-O {[%clk 0:02:19.6]} 4... Bg7 {[%clk 0:02:58.6]} 5. c3 {[%clk 0:02:20]}
5... e5 {[%clk 0:02:57.5]} 6. Na3 {[%clk 0:02:11.7]} 6... Nge7 {[%clk 0:02:56]}
7. Nc2 {[%clk 0:02:08.9]} 7... O-O {[%clk 0:02:54.3]} 8. d4 {[%clk 0:02:07.6]}
8... cxd4 {[%clk 0:02:53.1]} 9. cxd4 {[%clk 0:02:08.5]} 9... d6 {[%clk
0:02:50.5]} 10. Bg5 {[%clk 0:02:04.5]} 10... h6 {[%clk 0:02:41.5]} 11. Be3
{[%clk 0:01:41.4]} 11... Bg4 {[%clk 0:02:34.6]} 12. d5 {[%clk 0:01:39.2]} 12...
Nb8 {[%clk 0:02:28.4]} 13. h3 {[%clk 0:01:38.8]} 13... Bc8 {[%clk 0:02:27.1]}
14. Rc1 {[%clk 0:01:38.1]} 14... f5 {[%clk 0:02:24.6]} 15. exf5 {[%clk 0:01:29]}
15... gxf5 {[%clk 0:02:24]} 16. Bd2 {[%clk 0:01:26.6]} 16... a6 {[%clk
0:02:22.1]} 17. Be2 {[%clk 0:01:26.1]} 17... Nd7 {[%clk 0:02:18.9]} 18. Bb4
{[%clk 0:01:09.7]} 18... Nf6 {[%clk 0:02:18.2]} 19. Bc4 {[%clk 0:01:06]} 19...
b5 {[%clk 0:02:17.4]} 20. Be2 {[%clk 0:00:40.5]} 20... Nexd5 {[%clk 0:02:12.2]}
21. Bd2 {[%clk 0:00:39.6]} 21... Be6 {[%clk 0:02:07]} 22. Ne3 {[%clk 0:00:31.8]}
22... Nf4 {[%clk 0:02:02.9]} 23. Re1 {[%clk 0:00:29.2]} 23... Nxe2+ {[%clk
0:02:01.2]} 24. Qxe2 {[%clk 0:00:29.2]} 24... Rc8 {[%clk 0:01:55.4]} 25. Rcd1
{[%clk 0:00:26.8]} 25... Ne4 {[%clk 0:01:44.5]} 26. b3 {[%clk 0:00:08.2]} 26...
Qf6 {[%clk 0:01:37.7]} 27. Bb4 {[%clk 0:00:07.5]} 27... Rcd8 {[%clk 0:01:35]}
28. Nd2 {[%clk 0:00:07.7]} 28... Ng5 {[%clk 0:01:22.5]} 29. Nef1 {[%clk
0:00:03.8]} 29... Nf7 {[%clk 0:01:19]} 30. Nf3 {[%clk 0:00:03.6]} 30... Rfe8
{[%clk 0:01:13]} 31. a4 {[%clk 0:00:03.6]} 31... Bxb3 {[%clk 0:01:09.3]} 32.
axb5 {[%clk 0:00:03.7]} 32... Bxd1 {[%clk 0:01:07.6]} 33. Rxd1 {[%clk
0:00:04.6]} 33... axb5 {[%clk 0:01:06.5]} 34. Ne3 {[%clk 0:00:05.2]} 34... Qe6
{[%clk 0:01:00.6]} 35. Nd5 {[%clk 0:00:05.5]} 35... Rc8 {[%clk 0:00:56.5]} 36.
Qxb5 {[%clk 0:00:05.4]} 36... e4 {[%clk 0:00:51]} 37. Ne1 {[%clk 0:00:02.6]}
37... Ne5 {[%clk 0:00:48.1]} 38. Qe2 {[%clk 0:00:02.2]} 38... Qg6 {[%clk
0:00:41.1]} 39. Nf4 {[%clk 0:00:02.4]} 39... Qg5 {[%clk 0:00:35.4]} 40. g3
{[%clk 0:00:02.9]} 40... Rcd8 {[%clk 0:00:28]} 41. Bxd6 {[%clk 0:00:02.4]} 41...
Kh7 {[%clk 0:00:20.7]} 42. h4 {[%clk 0:00:02.5]} 42... Qf6 {[%clk 0:00:18.5]}
43. Bxe5 {[%clk 0:00:03.1]} 43... Qxe5 {[%clk 0:00:17.5]} 44. Neg2 {[%clk
0:00:03.7]} 44... Rxd1+ {[%clk 0:00:16.6]} 45. Qxd1 {[%clk 0:00:03.9]} 45... Qe7
{[%clk 0:00:15.9]} 46. Qh5 {[%clk 0:00:03.8]} 46... Qf6 {[%clk 0:00:14.3]} 47.
Ne3 {[%clk 0:00:04.2]} 47... Rc8 {[%clk 0:00:12.5]} 48. Nxf5 {[%clk 0:00:04.1]}
48... e3 {[%clk 0:00:08.5]} 49. Nxe3 {[%clk 0:00:04]} 49... Rc1+ {[%clk
0:00:07.7]} 50. Kh2 {[%clk 0:00:04.1]} 50... Ra1 {[%clk 0:00:05.7]} 51. Ned5
{[%clk 0:00:03]} 51... Qe5 {[%clk 0:00:01.4]} 52. Qg6+ {[%clk 0:00:03.3]} 1-0

[Event "Late-Titled-Tuesday-Blitz-July-09-2024"]
[Site "Chess.com"]
[Date "2024.07.09"]
[Round "2"]
[White "pirulillo"]
[Black "rychessmaster1"]
[Result "1-0"]
[WhiteElo "2428"]
[BlackElo "2830"]
[TimeControl "180+1"]
[EndTime "14:18:56 PDT"]
[Termination "pirulillo won by resignation"]

1. e4 {[%clk 0:03:00.5]} 1... e5 {[%clk 0:03:00.1]} 2. Bc4 {[%clk 0:02:59.3]}
2... Nf6 {[%clk 0:02:59.6]} 3. d3 {[%clk 0:02:59.4]} 3... Nc6 {[%clk 0:02:57]}
4. Nc3 {[%clk 0:02:59.1]} 4... Bb4 {[%clk 0:02:55.4]} 5. Ne2 {[%clk 0:02:58.8]}
5... d5 {[%clk 0:02:54.5]} 6. exd5 {[%clk 0:02:58.5]} 6... Nxd5 {[%clk
0:02:55.4]} 7. Bxd5 {[%clk 0:02:57.5]} 7... Qxd5 {[%clk 0:02:54.8]} 8. O-O
{[%clk 0:02:58.4]} 8... Qd8 {[%clk 0:02:47.2]} 9. f4 {[%clk 0:02:58]} 9... O-O
{[%clk 0:02:31.3]} 10. f5 {[%clk 0:02:57.7]} 10... f6 {[%clk 0:02:31.8]} 11. Be3
{[%clk 0:02:51.7]} 11... Ne7 {[%clk 0:02:21.9]} 12. Ng3 {[%clk 0:02:50.4]} 12...
Bxc3 {[%clk 0:02:14.7]} 13. bxc3 {[%clk 0:02:51.3]} 13... b6 {[%clk 0:02:14.9]}
14. c4 {[%clk 0:02:48.2]} 14... c5 {[%clk 0:02:11.4]} 15. Qf3 {[%clk 0:02:36.8]}
15... Bd7 {[%clk 0:02:01.9]} 16. Qg4 {[%clk 0:02:29.6]} 16... Qe8 {[%clk
0:01:58.3]} 17. Ne4 {[%clk 0:02:20.3]} 17... Nxf5 {[%clk 0:01:25.4]} 18. Rxf5
{[%clk 0:02:11.9]} 18... Kh8 {[%clk 0:01:26]} 19. Qf3 {[%clk 0:02:02]} 19...
Bxf5 {[%clk 0:01:13.8]} 20. Qxf5 {[%clk 0:02:01.7]} 20... g6 {[%clk 0:01:14.4]}
21. Qh3 {[%clk 0:01:48]} 21... Qc8 {[%clk 0:01:14.3]} 22. Qg3 {[%clk 0:01:41.9]}
22... Qc6 {[%clk 0:01:08]} 23. Rf1 {[%clk 0:01:38.5]} 23... Rae8 {[%clk
0:01:08.3]} 24. Bd2 {[%clk 0:01:29.7]} 24... f5 {[%clk 0:00:55]} 25. Ng5 {[%clk
0:01:24.3]} 25... Kg7 {[%clk 0:00:51.9]} 26. Bc3 {[%clk 0:01:22.9]} 26... Qf6
{[%clk 0:00:52.3]} 27. Nf3 {[%clk 0:01:18.8]} 27... f4 {[%clk 0:00:51.1]} 28.
Qf2 {[%clk 0:01:16.2]} 28... Re7 {[%clk 0:00:46.5]} 29. Re1 {[%clk 0:01:13.7]}
29... Rfe8 {[%clk 0:00:47.1]} 30. Nd2 {[%clk 0:01:09.2]} 30... Qf5 {[%clk
0:00:45.1]} 31. Ne4 {[%clk 0:01:08.2]} 31... g5 {[%clk 0:00:45.5]} 32. Nd6
{[%clk 0:01:06.9]} 32... Qg4 {[%clk 0:00:44]} 33. Nxe8+ {[%clk 0:01:06.3]} 33...
Rxe8 {[%clk 0:00:44.9]} 34. h3 {[%clk 0:01:04.8]} 34... Qf5 {[%clk 0:00:43.8]}
35. Qf3 {[%clk 0:01:03.8]} 35... Kg6 {[%clk 0:00:39.6]} 36. Qe4 {[%clk
0:01:03.3]} 36... h5 {[%clk 0:00:39.7]} 37. Qc6+ {[%clk 0:00:49.7]} 37... Re6
{[%clk 0:00:40.1]} 38. Qd7 {[%clk 0:00:43.4]} 38... g4 {[%clk 0:00:36.9]} 39.
hxg4 {[%clk 0:00:33.1]} 39... hxg4 {[%clk 0:00:37.8]} 40. Qd5 {[%clk 0:00:31.6]}
40... f3 {[%clk 0:00:36.7]} 41. gxf3 {[%clk 0:00:28.3]} 41... gxf3 {[%clk
0:00:35.6]} 42. Kf2 {[%clk 0:00:28.2]} 42... Kf7 {[%clk 0:00:27.8]} 43. Qxf3
{[%clk 0:00:26.4]} 43... Rf6 {[%clk 0:00:27.5]} 44. Qxf5 {[%clk 0:00:26.4]}
44... Rxf5+ {[%clk 0:00:28.4]} 45. Kg3 {[%clk 0:00:25.4]} 45... Ke6 {[%clk
0:00:28]} 46. Rh1 {[%clk 0:00:22.5]} 46... Rg5+ {[%clk 0:00:27.1]} 47. Kf3
{[%clk 0:00:22.2]} 47... Rf5+ {[%clk 0:00:27.6]} 48. Ke3 {[%clk 0:00:21.9]}
48... Rg5 {[%clk 0:00:28.3]} 49. Rh6+ {[%clk 0:00:21.6]} 49... Kf5 {[%clk
0:00:29]} 50. Rh7 {[%clk 0:00:20.8]} 50... Rg2 {[%clk 0:00:29.3]} 51. Rxa7
{[%clk 0:00:19]} 51... Rxc2 {[%clk 0:00:29.6]} 52. Bd2 {[%clk 0:00:18.1]} 52...
Rb2 {[%clk 0:00:28.2]} 53. a4 {[%clk 0:00:17.3]} 53... Rb3 {[%clk 0:00:28.5]}
54. Rf7+ {[%clk 0:00:16.5]} 54... Ke6 {[%clk 0:00:28.7]} 55. Rh7 {[%clk
0:00:16.4]} 55... Ra3 {[%clk 0:00:27.1]} 56. Rh6+ {[%clk 0:00:16.3]} 56... Kf5
{[%clk 0:00:27.4]} 57. Rxb6 {[%clk 0:00:16.3]} 57... e4 {[%clk 0:00:28]} 58. a5
{[%clk 0:00:13.8]} 58... Rxd3+ {[%clk 0:00:27.8]} 59. Ke2 {[%clk 0:00:13.9]}
59... Ra3 {[%clk 0:00:28.3]} 60. a6 {[%clk 0:00:13.4]} 60... Ke5 {[%clk
0:00:28.3]} 61. Rb5 {[%clk 0:00:12]} 61... Ra2 {[%clk 0:00:25.3]} 62. Ra5 {[%clk
0:00:09.9]} 1-0